[Event "Titled Tuesday Blitz March 08 Late 2022"]
[White "Rosen, Eric"]
[Black "Jones, Gawain C B"]
[WhiteFideId "2032562"]
[BlackFideId "409561"]
[WhiteElo "2362"]
[BlackElo "2657"]
[Result "1-0"]
[Round "03"]
[TimeControl "180+1"]
[Date "2022.03.08"]
[WhiteClock "0:00:09"]
[BlackClock "0:00:04"]

1. d4 {[%clk 0:02:58]}  Nf6 {[%clk 0:02:59]} 2. Bf4 {[%clk 0:02:57]}  g6 {[%clk 0:02:59]} 3. Nc3 {[%clk 0:02:57]}  d5 {[%clk 0:02:59]} 4. e3 {[%clk 0:02:56]}  Bg7 {[%clk 0:02:59]} 5. h4 {[%clk 0:02:57]}  h5 {[%clk 0:02:57]} 6. Nf3 {[%clk 0:02:56]}  O-O {[%clk 0:02:57]} 7. Ne5 {[%clk 0:02:52]}  c5 {[%clk 0:02:53]} 8. dxc5 {[%clk 0:02:52]}  Qa5 {[%clk 0:02:36]} 9. Qd2 {[%clk 0:02:51]}  Qxc5 {[%clk 0:02:34]} 10. Na4 {[%clk 0:02:51]}  Qd6 {[%clk 0:01:55]} 11. Nxg6 {[%clk 0:02:30]}  e5 {[%clk 0:01:55]} 12. Bxe5 {[%clk 0:02:18]}  Qe6 {[%clk 0:01:54]} 13. Nc5 {[%clk 0:01:43]}  Qe8 {[%clk 0:01:48]} 14. Bxf6 {[%clk 0:01:13]}  fxg6 {[%clk 0:01:48]} 15. Qxd5+ {[%clk 0:01:01]}  Kh8 {[%clk 0:01:48]} 16. Bxg7+ {[%clk 0:01:01]}  Kxg7 {[%clk 0:01:49]} 17. Bd3 {[%clk 0:00:56]}  Nc6 {[%clk 0:01:44]} 18. Ne4 {[%clk 0:00:48]}  Bf5 {[%clk 0:01:34]} 19. Nd6 {[%clk 0:00:45]}  Qe5 {[%clk 0:01:21]} 20. Nxf5+ {[%clk 0:00:43]}  Rxf5 {[%clk 0:01:12]} 21. Qxe5+ {[%clk 0:00:41]}  Rxe5 {[%clk 0:01:13]} 22. O-O-O {[%clk 0:00:41]}  Rf8 {[%clk 0:01:11]} 23. Rd2 {[%clk 0:00:39]}  Re6 {[%clk 0:00:58]} 24. g3 {[%clk 0:00:36]}  Ne5 {[%clk 0:00:58]} 25. f4 {[%clk 0:00:29]}  Ng4 {[%clk 0:00:45]} 26. e4 {[%clk 0:00:27]}  Rc8 {[%clk 0:00:42]} 27. e5 {[%clk 0:00:25]}  Rc7 {[%clk 0:00:32]} 28. Re1 {[%clk 0:00:25]}  Kf8 {[%clk 0:00:26]} 29. c3 {[%clk 0:00:24]}  Ke7 {[%clk 0:00:23]} 30. Bc2 {[%clk 0:00:25]}  Ra6 {[%clk 0:00:21]} 31. Bb3 {[%clk 0:00:24]}  Nh6 {[%clk 0:00:20]} 32. a3 {[%clk 0:00:22]}  Nf5 {[%clk 0:00:20]} 33. Rd3 {[%clk 0:00:22]}  Rb6 {[%clk 0:00:20]} 34. Bc2 {[%clk 0:00:22]}  a5 {[%clk 0:00:20]} 35. Rf3 {[%clk 0:00:19]}  Nh6 {[%clk 0:00:18]} 36. Rd1 {[%clk 0:00:20]}  Rbc6 {[%clk 0:00:17]} 37. Be4 {[%clk 0:00:19]}  Rb6 {[%clk 0:00:16]} 38. Rfd3 {[%clk 0:00:18]}  Nf7 {[%clk 0:00:14]} 39. Kc2 {[%clk 0:00:12]}  Rb5 {[%clk 0:00:14]} 40. Rd6 {[%clk 0:00:09]}  Rc4 {[%clk 0:00:12]} 41. R6d4 {[%clk 0:00:08]}  Rc7 {[%clk 0:00:07]} 42. Bxg6 {[%clk 0:00:08]}  Nh6 {[%clk 0:00:06]} 43. Bxh5 {[%clk 0:00:08]}  Nf5 {[%clk 0:00:07]} 44. R4d3 {[%clk 0:00:08]}  Ng7 {[%clk 0:00:05]} 45. Bg4 {[%clk 0:00:08]}  Ne8 {[%clk 0:00:03]} 46. Rd7+ {[%clk 0:00:09]}  Rxd7 {[%clk 0:00:03]} 47. Rxd7+ {[%clk 0:00:09]}  Kf8 {[%clk 0:00:03]} 48. Bf3 {[%clk 0:00:09]}  b6 {[%clk 0:00:03]} 49. h5 {[%clk 0:00:09]}  Rc5 {[%clk 0:00:04]} 50. h6 {[%clk 0:00:09]}  Rc7 {[%clk 0:00:04]} 51. Rxc7 {[%clk 0:00:09]}  Nxc7 {[%clk 0:00:04]} 52. g4 {[%clk 0:00:09]}  Ne6 {[%clk 0:00:05]} 53. f5 {[%clk 0:00:10]}  Ng5 {[%clk 0:00:05]} 54. Bd5 {[%clk 0:00:09]}  Nh3 {[%clk 0:00:04]} 55. b4 {[%clk 0:00:08]}  Nf4 {[%clk 0:00:04]} 56. Bc4 {[%clk 0:00:07]}  axb4 {[%clk 0:00:05]} 57. cxb4 {[%clk 0:00:07]}  Ng2 {[%clk 0:00:03]} 58. f6 {[%clk 0:00:07]}  Nf4 {[%clk 0:00:03]} 59. h7 {[%clk 0:00:07]}  Ng6 {[%clk 0:00:04]} 60. g5 {[%clk 0:00:08]}  Nh8 {[%clk 0:00:03]} 61. e6 {[%clk 0:00:08]}  b5 {[%clk 0:00:03]} 62. e7+ {[%clk 0:00:08]}  Ke8 {[%clk 0:00:03]} 63. Bxb5+ {[%clk 0:00:09]}  Kf7 {[%clk 0:00:04]} 64. e8=Q# {[%clk 0:00:09]} 1-0


[Site "https://www.chess.com"]

[Event "Titled Tuesday Blitz March 08 Late 2022"]
[White "Shuvalova, Polina"]
[Black "Corallo, Michael"]
[WhiteFideId "24171760"]
[BlackFideId "2024152"]
[WhiteElo "2575"]
[BlackElo "2339"]
[Result "1-0"]
[Round "03"]
[TimeControl "180+1"]
[Date "2022.03.09"]
[WhiteClock "0:00:51"]
[BlackClock "0:00:11"]

1. d4 {[%clk 0:03:00]}  Nf6 {[%clk 0:02:59]} 2. Nf3 {[%clk 0:03:00]}  e6 {[%clk 0:03:00]} 3. Bf4 {[%clk 0:03:00]}  b6 {[%clk 0:02:59]} 4. e3 {[%clk 0:03:00]}  Bb7 {[%clk 0:03:00]} 5. Nbd2 {[%clk 0:03:01]}  g6 {[%clk 0:03:00]} 6. h3 {[%clk 0:02:55]}  Bg7 {[%clk 0:03:00]} 7. Bd3 {[%clk 0:02:53]}  O-O {[%clk 0:03:00]} 8. O-O {[%clk 0:02:54]}  d6 {[%clk 0:03:01]} 9. c3 {[%clk 0:02:52]}  Nbd7 {[%clk 0:03:00]} 10. Bh2 {[%clk 0:02:52]}  Qe7 {[%clk 0:02:55]} 11. e4 {[%clk 0:02:43]}  Rfe8 {[%clk 0:02:48]} 12. a4 {[%clk 0:02:42]}  a5 {[%clk 0:02:46]} 13. Re1 {[%clk 0:02:33]}  e5 {[%clk 0:02:34]} 14. Qc2 {[%clk 0:02:26]}  Qf8 {[%clk 0:02:25]} 15. Rad1 {[%clk 0:02:23]}  Re7 {[%clk 0:02:04]} 16. d5 {[%clk 0:02:07]}  Nc5 {[%clk 0:01:49]} 17. Bb5 {[%clk 0:02:04]}  Ba6 {[%clk 0:01:42]} 18. b4 {[%clk 0:02:02]}  Bxb5 {[%clk 0:01:07]} 19. axb5 {[%clk 0:01:52]}  Nb7 {[%clk 0:01:07]} 20. Nc4 {[%clk 0:01:49]}  Qe8 {[%clk 0:01:06]} 21. bxa5 {[%clk 0:01:45]}  Nxa5 {[%clk 0:01:05]} 22. Nxa5 {[%clk 0:01:45]}  Rxa5 {[%clk 0:01:06]} 23. c4 {[%clk 0:01:45]}  Qa8 {[%clk 0:01:02]} 24. Nd2 {[%clk 0:01:45]}  Nd7 {[%clk 0:01:00]} 25. Nb3 {[%clk 0:01:44]}  Ra2 {[%clk 0:00:55]} 26. Ra1 {[%clk 0:01:41]}  Rxa1 {[%clk 0:00:45]} 27. Rxa1 {[%clk 0:01:40]}  Qb7 {[%clk 0:00:45]} 28. Bg3 {[%clk 0:01:33]}  Re8 {[%clk 0:00:45]} 29. Qa2 {[%clk 0:01:27]}  Rb8 {[%clk 0:00:40]} 30. Kh2 {[%clk 0:01:21]}  Qc8 {[%clk 0:00:36]} 31. f3 {[%clk 0:01:21]}  f5 {[%clk 0:00:34]} 32. exf5 {[%clk 0:01:12]}  gxf5 {[%clk 0:00:35]} 33. Qc2 {[%clk 0:01:13]}  Nf6 {[%clk 0:00:35]} 34. Ra7 {[%clk 0:01:09]}  f4 {[%clk 0:00:29]} 35. Bh4 {[%clk 0:01:08]}  Nh5 {[%clk 0:00:25]} 36. Nd2 {[%clk 0:01:04]}  Ra8 {[%clk 0:00:23]} 37. Rxa8 {[%clk 0:01:02]}  Qxa8 {[%clk 0:00:24]} 38. Qf5 {[%clk 0:01:02]}  Qe8 {[%clk 0:00:25]} 39. Ne4 {[%clk 0:01:00]}  Qg6 {[%clk 0:00:16]} 40. Qc8+ {[%clk 0:00:59]}  Bf8 {[%clk 0:00:16]} 41. Qxc7 {[%clk 0:00:55]}  Qf7 {[%clk 0:00:13]} 42. Qxb6 {[%clk 0:00:52]}  Be7 {[%clk 0:00:11]} 43. Qb8+ {[%clk 0:00:51]} 1-0


[Site "https://www.chess.com"]

[Event "Titled Tuesday Blitz March 08 Late 2022"]
[White "Spitzl, Vinzent"]
[Black "Piesik, Piotr"]
[WhiteFideId "12901253"]
[BlackFideId "1136194"]
[WhiteElo "2431"]
[BlackElo "2601"]
[Result "1-0"]
[Round "03"]
[TimeControl "180+1"]
[Date "2022.03.09"]
[WhiteClock "0:01:05"]
[BlackClock "0:01:13"]

1. e4 {[%clk 0:03:00]}  g6 {[%clk 0:02:44]} 2. d4 {[%clk 0:02:58]}  Bg7 {[%clk 0:02:45]} 3. Nc3 {[%clk 0:02:59]}  c6 {[%clk 0:02:45]} 4. h3 {[%clk 0:02:56]}  d6 {[%clk 0:02:45]} 5. Be3 {[%clk 0:02:54]}  Nf6 {[%clk 0:02:45]} 6. a4 {[%clk 0:02:52]}  O-O {[%clk 0:02:44]} 7. Nge2 {[%clk 0:02:51]}  e5 {[%clk 0:02:43]} 8. g4 {[%clk 0:02:51]}  exd4 {[%clk 0:02:40]} 9. Bxd4 {[%clk 0:02:50]}  d5 {[%clk 0:02:39]} 10. exd5 {[%clk 0:02:43]}  Re8 {[%clk 0:02:34]} 11. Bg2 {[%clk 0:02:41]}  Bf8 {[%clk 0:02:15]} 12. O-O {[%clk 0:02:29]}  Nxd5 {[%clk 0:02:15]} 13. Nxd5 {[%clk 0:02:27]}  cxd5 {[%clk 0:02:15]} 14. Qd2 {[%clk 0:02:18]}  Nc6 {[%clk 0:02:13]} 15. c3 {[%clk 0:02:18]}  Be6 {[%clk 0:02:02]} 16. Rfe1 {[%clk 0:02:14]}  Qc7 {[%clk 0:01:53]} 17. Rad1 {[%clk 0:02:05]}  Rad8 {[%clk 0:01:44]} 18. Nf4 {[%clk 0:01:51]}  Bh6 {[%clk 0:01:39]} 19. Be3 {[%clk 0:01:38]}  d4 {[%clk 0:01:29]} 20. Nxe6 {[%clk 0:01:15]}  dxe3 {[%clk 0:01:25]} 21. Nxc7 {[%clk 0:01:15]}  Rxd2 {[%clk 0:01:19]} 22. Rxd2 {[%clk 0:01:07]}  exd2 {[%clk 0:01:13]} 23. Rxe8+ {[%clk 0:01:06]}  Kg7 {[%clk 0:01:13]} 24. Bf3 {[%clk 0:01:05]} 1-0


[Site "https://www.chess.com"]

[Event "Titled Tuesday Blitz March 08 Late 2022"]
[White "Stoleriu, George"]
[Black "Mickiewicz, Piotr"]
[WhiteFideId "1227505"]
[BlackFideId "1114891"]
[WhiteElo "2608"]
[BlackElo "2431"]
[Result "1-0"]
[Round "03"]
[TimeControl "180+1"]
[Date "2022.03.09"]
[WhiteClock "0:00:58"]
[BlackClock "0:00:16"]

1. e4 {[%clk 0:02:58]}  c5 {[%clk 0:02:56]} 2. Nf3 {[%clk 0:02:57]}  e6 {[%clk 0:02:57]} 3. b3 {[%clk 0:02:57]}  Nc6 {[%clk 0:02:53]} 4. Bb2 {[%clk 0:02:57]}  Nge7 {[%clk 0:02:51]} 5. g3 {[%clk 0:02:56]}  d6 {[%clk 0:02:48]} 6. Bg2 {[%clk 0:02:56]}  e5 {[%clk 0:02:47]} 7. O-O {[%clk 0:02:57]}  g6 {[%clk 0:02:38]} 8. c3 {[%clk 0:02:57]}  Bg7 {[%clk 0:02:37]} 9. d4 {[%clk 0:02:52]}  O-O {[%clk 0:02:36]} 10. Na3 {[%clk 0:02:43]}  exd4 {[%clk 0:02:26]} 11. cxd4 {[%clk 0:02:37]}  Bg4 {[%clk 0:02:27]} 12. Nc2 {[%clk 0:02:34]}  cxd4 {[%clk 0:01:48]} 13. Ncxd4 {[%clk 0:02:32]}  Qb6 {[%clk 0:01:47]} 14. Nxc6 {[%clk 0:02:31]}  Nxc6 {[%clk 0:01:45]} 15. Bxg7 {[%clk 0:02:31]}  Kxg7 {[%clk 0:01:43]} 16. Qxd6 {[%clk 0:02:31]}  Rad8 {[%clk 0:01:40]} 17. Qf4 {[%clk 0:02:31]}  Bxf3 {[%clk 0:01:35]} 18. Bxf3 {[%clk 0:02:32]}  Nd4 {[%clk 0:01:13]} 19. Rad1 {[%clk 0:02:27]}  Qf6 {[%clk 0:01:05]} 20. Qxf6+ {[%clk 0:02:21]}  Kxf6 {[%clk 0:01:03]} 21. Bg2 {[%clk 0:02:21]}  b5 {[%clk 0:00:41]} 22. f4 {[%clk 0:02:15]}  Ne2+ {[%clk 0:00:40]} 23. Kf2 {[%clk 0:02:11]}  Nc3 {[%clk 0:00:41]} 24. e5+ {[%clk 0:02:00]}  Ke7 {[%clk 0:00:40]} 25. Rxd8 {[%clk 0:01:59]}  Rxd8 {[%clk 0:00:39]} 26. Ke3 {[%clk 0:01:57]}  b4 {[%clk 0:00:39]} 27. Rc1 {[%clk 0:01:55]}  Nd1+ {[%clk 0:00:33]} 28. Kf3 {[%clk 0:01:48]}  Rd2 {[%clk 0:00:30]} 29. g4 {[%clk 0:01:32]}  Nc3 {[%clk 0:00:25]} 30. a3 {[%clk 0:01:12]}  Rd3+ {[%clk 0:00:25]} 31. Kf2 {[%clk 0:01:12]}  Rd2+ {[%clk 0:00:25]} 32. Kf3 {[%clk 0:01:09]}  Rd3+ {[%clk 0:00:19]} 33. Kf2 {[%clk 0:01:09]}  bxa3 {[%clk 0:00:19]} 34. Bf1 {[%clk 0:01:01]}  Rd2+ {[%clk 0:00:19]} 35. Ke3 {[%clk 0:01:01]}  Rb2 {[%clk 0:00:18]} 36. Rxc3 {[%clk 0:00:58]}  a2 {[%clk 0:00:18]} 37. Rc7+ {[%clk 0:00:58]}  Kd8 {[%clk 0:00:18]} 38. Rxa7 {[%clk 0:00:59]}  Rxb3+ {[%clk 0:00:18]} 39. Bd3 {[%clk 0:00:59]}  Rb1 {[%clk 0:00:18]} 40. Rxa2 {[%clk 0:00:58]}  Re1+ {[%clk 0:00:17]} 41. Kd4 {[%clk 0:00:58]}  Rd1 {[%clk 0:00:16]} 1-0


[Site "https://www.chess.com"]

[Event "Titled Tuesday Blitz March 08 Late 2022"]
[White "Szpar, Milosz"]
[Black "Dubov, Daniil"]
[WhiteFideId "1184989"]
[BlackFideId "24126055"]
[WhiteElo "2447"]
[BlackElo "2791"]
[Result "0-1"]
[Round "03"]
[TimeControl "180+1"]
[Date "2022.03.08"]
[WhiteClock "0:00:12"]
[BlackClock "0:01:41"]

1. e4 {[%clk 0:03:00]}  c5 {[%clk 0:02:59]} 2. Nf3 {[%clk 0:03:00]}  e6 {[%clk 0:02:59]} 3. d4 {[%clk 0:03:00]}  cxd4 {[%clk 0:03:00]} 4. Nxd4 {[%clk 0:03:00]}  a6 {[%clk 0:03:00]} 5. Bd3 {[%clk 0:02:58]}  Bc5 {[%clk 0:02:59]} 6. Nb3 {[%clk 0:02:58]}  Ba7 {[%clk 0:02:59]} 7. Qe2 {[%clk 0:02:57]}  Ne7 {[%clk 0:02:58]} 8. Be3 {[%clk 0:02:57]}  Nbc6 {[%clk 0:02:58]} 9. O-O {[%clk 0:02:57]}  O-O {[%clk 0:02:57]} 10. Nc3 {[%clk 0:02:46]}  b5 {[%clk 0:02:56]} 11. a3 {[%clk 0:02:44]}  d6 {[%clk 0:02:55]} 12. Rad1 {[%clk 0:02:43]}  Bb7 {[%clk 0:02:54]} 13. Kh1 {[%clk 0:02:40]}  Ne5 {[%clk 0:02:44]} 14. Bxa7 {[%clk 0:02:37]}  Rxa7 {[%clk 0:02:43]} 15. Qe3 {[%clk 0:02:38]}  Ra8 {[%clk 0:02:33]} 16. Be2 {[%clk 0:02:38]}  Qc7 {[%clk 0:02:33]} 17. f4 {[%clk 0:02:25]}  Nc4 {[%clk 0:02:32]} 18. Bxc4 {[%clk 0:02:17]}  bxc4 {[%clk 0:02:33]} 19. Nd4 {[%clk 0:02:12]}  e5 {[%clk 0:02:33]} 20. Nde2 {[%clk 0:01:59]}  f5 {[%clk 0:02:31]} 21. fxe5 {[%clk 0:01:26]}  dxe5 {[%clk 0:02:32]} 22. Ng1 {[%clk 0:00:56]}  fxe4 {[%clk 0:02:22]} 23. Rxf8+ {[%clk 0:00:40]}  Rxf8 {[%clk 0:02:21]} 24. Nxe4 {[%clk 0:00:40]}  Nf5 {[%clk 0:02:02]} 25. Qc5 {[%clk 0:00:24]}  Qxc5 {[%clk 0:02:01]} 26. Nxc5 {[%clk 0:00:25]}  Bxg2+ {[%clk 0:02:02]} 27. Kxg2 {[%clk 0:00:20]}  Ne3+ {[%clk 0:02:03]} 28. Kg3 {[%clk 0:00:20]}  Nxd1 {[%clk 0:02:03]} 29. Nf3 {[%clk 0:00:21]}  Nxb2 {[%clk 0:01:59]} 30. Nxe5 {[%clk 0:00:20]}  a5 {[%clk 0:01:51]} 31. Nc6 {[%clk 0:00:18]}  a4 {[%clk 0:01:46]} 32. Nd7 {[%clk 0:00:12]}  Rf1 {[%clk 0:01:44]} 33. Ne7+ {[%clk 0:00:12]}  Kf7 {[%clk 0:01:42]} 34. Nd5 {[%clk 0:00:12]}  Ra1 {[%clk 0:01:41]} 0-1


[Site "https://www.chess.com"]

[Event "Titled Tuesday Blitz March 08 Late 2022"]
[White "Tabatabaei, M. Amin"]
[Black "Di Nicolantonio, Lucas"]
[WhiteFideId "12521213"]
[BlackFideId "680460"]
[WhiteElo "2544"]
[BlackElo "2381"]
[Result "1-0"]
[Round "03"]
[TimeControl "180+1"]
[Date "2022.03.08"]
[WhiteClock "0:00:23"]
[BlackClock "0:00:09"]

1. d4 {[%clk 0:03:00]}  Nf6 {[%clk 0:02:55]} 2. Nf3 {[%clk 0:03:01]}  e6 {[%clk 0:02:54]} 3. Bf4 {[%clk 0:02:44]}  d5 {[%clk 0:02:48]} 4. e3 {[%clk 0:02:40]}  Bd6 {[%clk 0:02:48]} 5. Ne5 {[%clk 0:02:38]}  O-O {[%clk 0:02:45]} 6. Nd2 {[%clk 0:02:37]}  c5 {[%clk 0:02:39]} 7. c3 {[%clk 0:02:26]}  Nc6 {[%clk 0:02:34]} 8. Bd3 {[%clk 0:02:20]}  Qc7 {[%clk 0:02:21]} 9. Ndf3 {[%clk 0:02:19]}  Ne4 {[%clk 0:02:18]} 10. Nxc6 {[%clk 0:02:05]}  Bxf4 {[%clk 0:02:08]} 11. exf4 {[%clk 0:01:56]}  bxc6 {[%clk 0:01:54]} 12. g3 {[%clk 0:01:53]}  cxd4 {[%clk 0:01:52]} 13. cxd4 {[%clk 0:01:48]}  c5 {[%clk 0:01:50]} 14. dxc5 {[%clk 0:01:45]}  Qa5+ {[%clk 0:01:43]} 15. Nd2 {[%clk 0:01:41]}  Nxd2 {[%clk 0:01:39]} 16. Qxd2 {[%clk 0:01:42]}  Qxc5 {[%clk 0:01:39]} 17. Rc1 {[%clk 0:01:40]}  Qb6 {[%clk 0:01:36]} 18. O-O {[%clk 0:01:37]}  Bb7 {[%clk 0:01:32]} 19. b4 {[%clk 0:01:34]}  Rfc8 {[%clk 0:01:26]} 20. a3 {[%clk 0:01:34]}  h6 {[%clk 0:01:25]} 21. h4 {[%clk 0:01:32]}  d4 {[%clk 0:01:17]} 22. Qe2 {[%clk 0:01:24]}  Qd6 {[%clk 0:01:09]} 23. Qe5 {[%clk 0:01:19]}  Qxe5 {[%clk 0:01:04]} 24. fxe5 {[%clk 0:01:20]}  Rc3 {[%clk 0:00:59]} 25. Rxc3 {[%clk 0:01:19]}  dxc3 {[%clk 0:01:00]} 26. Rc1 {[%clk 0:01:19]}  Rc8 {[%clk 0:01:00]} 27. f4 {[%clk 0:01:18]}  f6 {[%clk 0:00:54]} 28. Kf2 {[%clk 0:01:16]}  fxe5 {[%clk 0:00:53]} 29. fxe5 {[%clk 0:01:17]}  Bd5 {[%clk 0:00:36]} 30. Ke3 {[%clk 0:01:09]}  Bb3 {[%clk 0:00:23]} 31. Bc2 {[%clk 0:01:04]}  Bd5 {[%clk 0:00:20]} 32. Bd3 {[%clk 0:00:58]}  Bb3 {[%clk 0:00:19]} 33. Bc2 {[%clk 0:00:39]}  Bd5 {[%clk 0:00:19]} 34. Kd3 {[%clk 0:00:39]}  Kf7 {[%clk 0:00:15]} 35. Bd1 {[%clk 0:00:34]}  Kg6 {[%clk 0:00:14]} 36. Rxc3 {[%clk 0:00:30]}  Rd8 {[%clk 0:00:13]} 37. Ke3 {[%clk 0:00:29]}  Kf5 {[%clk 0:00:13]} 38. Rc7 {[%clk 0:00:29]}  g5 {[%clk 0:00:12]} 39. hxg5 {[%clk 0:00:27]}  hxg5 {[%clk 0:00:13]} 40. Rxa7 {[%clk 0:00:26]}  Kxe5 {[%clk 0:00:14]} 41. b5 {[%clk 0:00:25]}  Bc4 {[%clk 0:00:14]} 42. Be2 {[%clk 0:00:25]}  Bxe2 {[%clk 0:00:13]} 43. Kxe2 {[%clk 0:00:26]}  Ke4 {[%clk 0:00:10]} 44. b6 {[%clk 0:00:25]}  Rd3 {[%clk 0:00:09]} 45. Ra4+ {[%clk 0:00:23]} 1-0


[Site "https://www.chess.com"]

[Event "Titled Tuesday Blitz March 08 Late 2022"]
[White "Tanenbaum, Zachary"]
[Black "Kim, Sergey"]
[WhiteFideId "2060850"]
[BlackFideId "13700570"]
[WhiteElo "2168"]
[BlackElo "2546"]
[Result "0-1"]
[Round "03"]
[TimeControl "180+1"]
[Date "2022.03.08"]
[WhiteClock "0:00:10"]
[BlackClock "0:01:02"]

1. e4 {[%clk 0:02:52]}  e5 {[%clk 0:02:59]} 2. Nf3 {[%clk 0:02:51]}  Nc6 {[%clk 0:02:59]} 3. Bc4 {[%clk 0:02:51]}  Bc5 {[%clk 0:02:59]} 4. c3 {[%clk 0:02:51]}  Nf6 {[%clk 0:02:58]} 5. d3 {[%clk 0:02:50]}  d6 {[%clk 0:02:58]} 6. Nbd2 {[%clk 0:02:49]}  a6 {[%clk 0:02:58]} 7. a4 {[%clk 0:02:49]}  Ba7 {[%clk 0:02:58]} 8. Nf1 {[%clk 0:02:49]}  O-O {[%clk 0:02:57]} 9. Ng3 {[%clk 0:02:49]}  h6 {[%clk 0:02:56]} 10. O-O {[%clk 0:02:48]}  Ne7 {[%clk 0:02:55]} 11. Be3 {[%clk 0:02:47]}  Ng6 {[%clk 0:02:54]} 12. Bxa7 {[%clk 0:02:46]}  Rxa7 {[%clk 0:02:54]} 13. d4 {[%clk 0:02:47]}  Re8 {[%clk 0:02:51]} 14. dxe5 {[%clk 0:02:45]}  dxe5 {[%clk 0:02:51]} 15. Qxd8 {[%clk 0:02:44]}  Rxd8 {[%clk 0:02:50]} 16. Rad1 {[%clk 0:02:44]}  Re8 {[%clk 0:02:50]} 17. h3 {[%clk 0:02:30]}  Ra8 {[%clk 0:02:48]} 18. a5 {[%clk 0:02:16]}  Kf8 {[%clk 0:02:46]} 19. Rfe1 {[%clk 0:02:00]}  Be6 {[%clk 0:02:45]} 20. Bxe6 {[%clk 0:01:59]}  Rxe6 {[%clk 0:02:45]} 21. Nf5 {[%clk 0:01:54]}  Ree8 {[%clk 0:02:45]} 22. g3 {[%clk 0:01:45]}  Rad8 {[%clk 0:02:43]} 23. Kf1 {[%clk 0:01:35]}  Rxd1 {[%clk 0:02:41]} 24. Rxd1 {[%clk 0:01:36]}  Nxe4 {[%clk 0:02:34]} 25. Rd7 {[%clk 0:01:36]}  Rc8 {[%clk 0:02:34]} 26. h4 {[%clk 0:01:06]}  Nf6 {[%clk 0:02:33]} 27. Rd1 {[%clk 0:00:54]}  e4 {[%clk 0:02:31]} 28. N3d4 {[%clk 0:00:49]}  Ne5 {[%clk 0:02:28]} 29. Nb3 {[%clk 0:00:42]}  Nd3 {[%clk 0:02:23]} 30. Nbd4 {[%clk 0:00:25]}  h5 {[%clk 0:02:19]} 31. Ke2 {[%clk 0:00:24]}  g6 {[%clk 0:02:16]} 32. Ne3 {[%clk 0:00:23]}  Ne5 {[%clk 0:02:13]} 33. b4 {[%clk 0:00:23]}  Ke7 {[%clk 0:02:07]} 34. Nb3 {[%clk 0:00:22]}  b6 {[%clk 0:02:00]} 35. Ra1 {[%clk 0:00:18]}  b5 {[%clk 0:01:55]} 36. Nc5 {[%clk 0:00:18]}  Ra8 {[%clk 0:01:54]} 37. Rd1 {[%clk 0:00:18]}  Ned7 {[%clk 0:01:38]} 38. Nb3 {[%clk 0:00:11]}  Rc8 {[%clk 0:01:33]} 39. Nd4 {[%clk 0:00:10]}  c5 {[%clk 0:01:30]} 40. Ndc2 {[%clk 0:00:05]}  Ne5 {[%clk 0:01:27]} 41. Na3 {[%clk 0:00:03]}  cxb4 {[%clk 0:01:22]} 42. cxb4 {[%clk 0:00:04]}  Nd3 {[%clk 0:01:22]} 43. f3 {[%clk 0:00:03]}  Nxb4 {[%clk 0:01:22]} 44. fxe4 {[%clk 0:00:04]}  Nxe4 {[%clk 0:01:21]} 45. Rd4 {[%clk 0:00:04]}  Nc3+ {[%clk 0:01:19]} 46. Kf3 {[%clk 0:00:04]}  Nc6 {[%clk 0:01:17]} 47. Rd2 {[%clk 0:00:04]}  Nxa5 {[%clk 0:01:17]} 48. Rc2 {[%clk 0:00:03]}  b4 {[%clk 0:01:17]} 49. Nb1 {[%clk 0:00:03]}  Ke6 {[%clk 0:01:15]} 50. Nxc3 {[%clk 0:00:03]}  Rxc3 {[%clk 0:01:14]} 51. Rxc3 {[%clk 0:00:03]}  bxc3 {[%clk 0:01:14]} 52. Ke4 {[%clk 0:00:04]}  Nc6 {[%clk 0:01:11]} 53. Kd3 {[%clk 0:00:04]}  Ke5 {[%clk 0:01:10]} 54. Kxc3 {[%clk 0:00:04]}  Ke4 {[%clk 0:01:10]} 55. Nc4 {[%clk 0:00:04]}  Ne5 {[%clk 0:01:06]} 56. Nd6+ {[%clk 0:00:04]}  Kf3 {[%clk 0:01:06]} 57. Kd4 {[%clk 0:00:04]}  f6 {[%clk 0:01:06]} 58. Ne8 {[%clk 0:00:04]}  Kxg3 {[%clk 0:01:05]} 59. Nxf6 {[%clk 0:00:04]}  Nf3+ {[%clk 0:01:05]} 60. Ke4 {[%clk 0:00:05]}  Nxh4 {[%clk 0:01:06]} 61. Ne8 {[%clk 0:00:04]}  a5 {[%clk 0:01:06]} 62. Nd6 {[%clk 0:00:04]}  a4 {[%clk 0:01:06]} 63. Nc4 {[%clk 0:00:05]}  g5 {[%clk 0:01:06]} 64. Ke3 {[%clk 0:00:05]}  g4 {[%clk 0:01:06]} 65. Ke2 {[%clk 0:00:06]}  Kg2 {[%clk 0:01:05]} 66. Ne3+ {[%clk 0:00:06]}  Kh2 {[%clk 0:01:04]} 67. Nf1+ {[%clk 0:00:06]}  Kg1 {[%clk 0:01:03]} 68. Nd2 {[%clk 0:00:05]}  a3 {[%clk 0:01:03]} 69. Nb3 {[%clk 0:00:05]}  g3 {[%clk 0:01:02]} 70. Ke3 {[%clk 0:00:06]}  g2 {[%clk 0:01:02]} 71. Kf4 {[%clk 0:00:06]}  Kf1 {[%clk 0:01:01]} 72. Ke4 {[%clk 0:00:07]}  g1=Q {[%clk 0:01:01]} 73. Kd3 {[%clk 0:00:08]}  Qg3+ {[%clk 0:01:01]} 74. Kc2 {[%clk 0:00:09]}  Qxb3+ {[%clk 0:01:02]} 75. Kxb3 {[%clk 0:00:08]}  Nf3 {[%clk 0:01:02]} 76. Ka2 {[%clk 0:00:07]}  h4 {[%clk 0:01:03]} 77. Kb3 {[%clk 0:00:08]}  h3 {[%clk 0:01:04]} 78. Ka2 {[%clk 0:00:09]}  h2 {[%clk 0:01:04]} 79. Kb3 {[%clk 0:00:10]}  h1=Q {[%clk 0:01:04]} 80. Ka2 {[%clk 0:00:11]}  Qg2+ {[%clk 0:01:04]} 81. Kb3 {[%clk 0:00:09]}  a2 {[%clk 0:01:04]} 82. Kc4 {[%clk 0:00:10]}  a1=Q {[%clk 0:01:03]} 83. Kd3 {[%clk 0:00:10]}  Qd4# {[%clk 0:01:02]} 0-1


[Site "https://www.chess.com"]

[Event "Titled Tuesday Blitz March 08 Late 2022"]
[White "Thavandiran, Shiyam"]
[Black "Ishbaev, Alibek"]
[WhiteFideId "2605058"]
[BlackFideId "14205017"]
[WhiteElo "2357"]
[BlackElo "2340"]
[Result "1-0"]
[Round "03"]
[TimeControl "180+1"]
[Date "2022.03.08"]
[WhiteClock "0:00:55"]
[BlackClock "0:00:47"]

1. e4 {[%clk 0:02:41]}  e5 {[%clk 0:02:59]} 2. Bc4 {[%clk 0:02:41]}  g6 {[%clk 0:02:57]} 3. d4 {[%clk 0:02:34]}  exd4 {[%clk 0:02:54]} 4. Qxd4 {[%clk 0:02:34]}  Qf6 {[%clk 0:02:54]} 5. e5 {[%clk 0:02:31]}  Qb6 {[%clk 0:02:52]} 6. Qd5 {[%clk 0:02:22]}  Qe6 {[%clk 0:02:47]} 7. Qe4 {[%clk 0:02:09]}  Nf6 {[%clk 0:02:05]} 8. Qe2 {[%clk 0:02:04]}  d5 {[%clk 0:02:04]} 9. Bb3 {[%clk 0:01:24]}  Ng4 {[%clk 0:01:55]} 10. Nf3 {[%clk 0:01:24]}  Bc5 {[%clk 0:01:54]} 11. O-O {[%clk 0:01:23]}  Nc6 {[%clk 0:01:48]} 12. Nc3 {[%clk 0:01:20]}  Ngxe5 {[%clk 0:01:04]} 13. Nxd5 {[%clk 0:01:08]}  Nxf3+ {[%clk 0:00:53]} 14. Qxf3 {[%clk 0:01:07]}  Nd4 {[%clk 0:00:53]} 15. Nxc7+ {[%clk 0:01:04]}  Kd7 {[%clk 0:00:52]} 16. Bxe6+ {[%clk 0:01:03]}  Kxc7 {[%clk 0:00:50]} 17. Qxf7+ {[%clk 0:01:02]}  Kb6 {[%clk 0:00:48]} 18. Bxc8 {[%clk 0:00:58]}  Raxc8 {[%clk 0:00:47]} 19. Be3 {[%clk 0:00:55]} 1-0


[Site "https://www.chess.com"]